bitfinex/quotes_ETHUSD_20220106
["timestamp","ask_amount","ask_price","bid_price","bid_amount"]
[1641461260969,0.01299713,3362.7,3361.4,3.8761]
[1641461261168,0.01299713,3362.7,3361.1,3.8247]
[1641461261169,0.97959713,3362.7,3361.1,3.8247]
[1641461261364,0.97959713,3362.7,3361.3,0.6327151]
[1641461261567,1.22359713,3362.7,3362.6,1.96255245]
[1641461261765,0.3,3363.4,3362.6,1.96255245]
[1641461261766,0.18798739,3363.9,3362.6,1.96255245]
[1641461262021,0.44476748,3364.4,3362.6,1.9784683]
[1641461262022,3.46985229,3364.3,3362.6,1.9784683]
[1641461262222,3.46985229,3364.3,3362.7,0.01534743]
[1641461262223,2.0,3363.6,3362.7,0.01534743]
[1641461262425,2.03872176,3363.6,3362.9,1.24600777]
[1641461262623,2.03872176,3363.6,3362.3,0.356]
[1641461262829,5.03983004,3364.1,3363.1,1.40549081]
[1641461263029,5.03983004,3364.1,3362.4,2.8509483]
[1641461263030,0.08876748,3364.4,3363.2,1.61413702]
[1641461263227,1.01413702,3363.2,3362.8,6.4509483]
[1641461263526,2.0,3365.4,3363.1,9.8]
[1641461263731,2.03953012,3365.2,3364.8,1.79938612]
[1641461264027,0.00170527,3364.3,3363.3,2.8509483]
[1641461264226,0.00170527,3364.3,3363.2,0.36054739]
[1641461264227,0.00170527,3364.3,3363.6,1.03173785]
[1641461264428,0.00113684,3364.2,3363.6,1.03173785]
[1641461264629,3.684e-05,3364.2,3363.7,0.00170528]
[1641461264830,0.01250382,3366.3,3363.9,13.8]
[1641461265031,8.93108841,3366.9,3364.0,2.86355688]
[1641461265228,8.93108841,3366.9,3364.1,0.356]
[1641461265229,0.00401581,3366.1,3364.1,0.356]
[1641461265429,0.00401581,3366.1,3364.2,4.27412513]
[1641461265660,4.738e-05,3366.0,3365.1,1.03113923]
[1641461265962,4.738e-05,3366.0,3365.2,3.38849329]
[1641461266164,4.738e-05,3366.0,3365.3,3.23872908]
[1641461266367,4.738e-05,3366.0,3365.3,0.36393158]
[1641461266567,4.738e-05,3366.0,3365.4,0.00736316]
[1641461266865,4.738e-05,3366.0,3365.5,0.306]
[1641461267066,4.738e-05,3366.0,3364.4,1.79849335]
[1641461267265,0.059,3366.4,3364.5,0.356]
[1641461267266,0.00284212,3365.9,3364.5,0.356]
[1641461267467,0.00284212,3365.9,3364.5,0.36111581]
[1641461267468,0.01273946,3365.8,3364.5,0.36111581]
[1641461267765,0.00170527,3365.7,3364.5,0.36111581]
[1641461268166,0.059,3366.4,3364.5,0.36111581]
[1641461268167,3.685e-05,3365.6,3364.6,1.03320975]
[1641461268365,3.685e-05,3365.6,3364.6,1.03885713]
[1641461268568,0.00401581,3366.3,3363.9,12.05281131]
[1641461268770,0.00454739,3365.5,3363.9,12.05281131]
[1641461268971,0.00852635,3366.2,3364.0,0.35997896]
[1641461269170,0.00397896,3365.4,3364.0,0.35997896]
[1641461269416,0.01207617,3365.9,3364.3,1.31446979]
[1641461269622,0.00341054,3365.3,3364.3,1.31446979]
[1641461269820,1.92111858,3365.4,3365.0,1.95432892]
[1641461270122,0.00341054,3365.3,3365.0,1.95432892]
[1641461270319,0.00341054,3365.3,3365.0,1.96397336]
[1641461270522,0.00284212,3365.2,3365.0,1.96397336]
[1641461270922,0.00227369,3365.1,3365.0,1.96397336]
[1641461272722,0.00227369,3365.1,3363.4,3.8906]
[1641461272723,0.00227369,3365.1,3364.8,1.03406618]
[1641461272925,0.00397896,3365.1,3364.8,1.03406618]
[1641461273156,0.00397896,3365.1,3363.9,17.33]
[1641461273157,0.00341054,3365.0,3364.6,0.356]
[1641461273354,0.00341054,3365.0,3363.9,17.33]
[1641461273355,0.00341054,3365.0,3364.9,13.45105788]
[1641461273557,0.01294415,3365.9,3364.9,0.00105788]
[1641461273758,8.88287663,3365.4,3364.9,0.00105788]
[1641461273958,8.88287663,3365.4,3363.4,3.8906]
[1641461273959,8.88287663,3365.4,3363.9,0.00674212]
[1641461274160,0.00121581,3365.3,3364.2,1.01413979]
[1641461274559,0.00121581,3365.3,3365.2,1.79909271]
[1641461275160,0.00121581,3365.3,3363.8,2.74154312]
[1641461275358,0.00568423,3365.3,3363.1,17.33]
[1641461275559,0.00511581,3365.2,3363.9,0.0022737]
[1641461275759,0.00511581,3365.2,3364.7,1.73780086]
[1641461275961,9.43799244,3365.4,3364.7,1.73780086]
[1641461276160,9.43799244,3365.4,3364.8,0.0022737]
[1641461276465,9.43799244,3365.4,3364.0,1.06609939]
[1641461276466,0.25511581,3365.4,3364.0,1.06609939]
[1641461276925,0.00284212,3365.3,3364.1,0.00397896]
[1641461277323,0.0022737,3365.2,3363.1,0.0096632]
[1641461277525,0.0022737,3365.2,3363.8,1.74862454]
[1641461277722,0.00170527,3365.1,3363.8,1.74862454]
[1641461277924,0.00170527,3365.1,3364.8,1.42448199]
[1641461278224,0.00113685,3365.0,3364.8,1.42448199]
[1641461278626,0.0011737,3365.2,3364.8,1.42448199]
[1641461278824,7.37e-05,3365.2,3364.9,2.51928206]
[1641461279022,3.35843275,3365.8,3364.9,0.356]
[1641461279023,0.01265307,3365.5,3364.9,0.356]
[1641461279226,0.059,3366.4,3365.1,13.8]
[1641461279426,1.054e-05,3365.4,3365.2,17.686]
[1641461279623,1.054e-05,3365.4,3365.3,0.356]
[1641461279824,0.00512635,3366.3,3365.3,0.356]
[1641461280025,0.00512635,3366.3,3366.2,2.09434453]
[1641461280224,0.059,3366.4,3366.2,2.09434453]
[1641461280426,0.059,3366.4,3365.2,0.0011263]
[1641461280865,0.059,3366.4,3365.0,0.00226315]
[1641461281265,0.559,3366.4,3365.0,0.00226315]
[1641461281465,0.559,3366.4,3365.0,1.89423398]
[1641461281466,0.059,3366.4,3365.0,1.89423398]
[1641461281664,0.3,3365.8,3365.1,1.10364937]
[1641461281869,0.359,3366.4,3365.1,1.1053441]
[1641461282066,0.00171581,3365.7,3365.1,1.1053441]
[1641461282566,0.00114739,3365.6,3365.1,1.1053441]
[1641461282769,0.00114739,3365.6,3365.3,1.67300097]
[1641461282972,0.059,3366.4,3365.3,1.67300097]
[1641461282973,0.0022737,3365.5,3365.3,1.67300097]
[1641461283370,0.00170527,3365.4,3364.1,0.356]
[1641461283771,0.00113685,3365.3,3365.1,1.30209106]
[1641461284170,0.8858,3365.9,3365.1,1.30209106]
[1641461284416,0.8858,3365.9,3365.7,1.21071477]
[1641461284610,0.00397897,3365.8,3364.9,1.74653664]
[1641461285014,0.00341054,3365.7,3364.9,19.07653664]
[1641461285316,0.00284212,3365.6,3364.9,19.07653664]
[1641461285517,0.00284212,3365.6,3365.0,1.19588336]
[1641461285717,0.8858,3365.9,3365.0,1.19588336]
[1641461285718,0.0022737,3365.5,3365.0,1.19588336]
[1641461285917,0.0022737,3365.5,3364.9,1.74653664]
[1641461286118,0.01406939,3365.4,3363.6,0.02670971]
[1641461286517,0.01406939,3365.4,3364.0,0.00625265]
[1641461286518,0.00113685,3365.3,3364.0,0.00625265]
[1641461286718,0.88693685,3365.3,3364.0,0.00625265]
[1641461286919,0.88693685,3365.3,3364.7,1.27314339]
[1641461287118,0.88693685,3365.3,3365.2,4.82555711]
[1641461287318,0.88693685,3365.3,3365.2,1.72555711]
[1641461287520,5.0,3365.9,3365.3,1.57158051]
[1641461287720,2.9724,3365.9,3365.3,2.32588051]
[1641461287921,1.78072456,3365.5,3365.3,2.32588051]
[1641461288181,1.71144911,3366.0,3365.5,13.05]
[1641461288374,1.71144911,3366.0,3365.4,0.0022737]
[1641461288576,2.53867538,3367.3,3365.6,0.00113685]
[1641461288776,2.53867538,3367.3,3366.3,2.24401148]
[1641461289176,2.53867538,3367.6,3366.3,2.24401148]
[1641461289376,5.04971616,3367.9,3367.2,1.31034974]
[1641461289377,5.03755453,3367.9,3367.2,1.31034974]
[1641461289977,2.0,3368.3,3367.2,1.31034974]
[1641461289978,5.9395,3367.3,3367.2,1.31034974]
[1641461290180,2.0,3368.3,3367.4,0.65457878]
[1641461290479,0.01364216,3368.2,3367.4,1.59487878]
[1641461290678,0.01364216,3368.2,3367.4,0.9403]
[1641461290878,0.01307374,3368.1,3367.4,0.9403]
[1641461291283,0.01250531,3368.0,3366.1,1.49777958]
[1641461291479,0.01250531,3368.0,3365.7,0.00140689]
[1641461291681,0.01193689,3367.9,3365.7,0.00140689]
[1641461292110,0.15136628,3368.2,3365.7,0.00140689]
[1641461292111,5.95166847,3367.8,3365.9,17.686]
[1641461292309,5.95166847,3367.8,3367.2,1.59896427]
[1641461292510,5.90110004,3367.8,3367.2,1.59896427]
[1641461292709,5.90110004,3367.8,3367.3,0.0022737]
[1641461292911,5.90110004,3367.8,3367.7,1.06415886]
[1641461293509,5.90110004,3367.8,3367.3,0.0022737]
[1641461294312,2.70695417,3367.7,3367.3,0.0022737]
[1641461294720,6.20110004,3367.8,3365.9,0.01023162]
[1641461294721,5.90110004,3367.6,3365.9,0.01023162]
[1641461294916,5.90110004,3367.6,3366.3,0.00795793]
[1641461294917,8.98177949,3367.6,3366.3,0.00795793]
[1641461295118,0.01226085,3367.1,3365.9,0.01023162]
[1641461295319,6.39530001,3367.0,3365.9,0.01023162]
[1641461295521,0.01282716,3366.4,3365.8,0.01080004]
[1641461295990,5.90110004,3366.3,3365.8,0.01080004]
[1641461296192,6.20110004,3366.3,3365.8,0.01080004]
[1641461296392,1.87970655,3366.1,3365.8,0.01080004]
[1641461296591,2.70916944,3366.2,3365.8,0.01080004]
[1641461296791,6.20110004,3366.3,3365.8,0.01080004]
[1641461296993,6.20110004,3366.1,3365.8,0.01080004]
[1641461297792,6.20110004,3366.1,3365.2,1.90867924]
[1641461297994,0.00113684,3366.0,3365.2,1.90867924]
[1641461298193,0.00113684,3366.0,3365.7,1.23703859]
[1641461298391,0.00113684,3366.0,3365.3,0.00284212]
[1641461298392,5.90110004,3365.9,3365.3,0.00284212]
[1641461298593,6.20110004,3365.9,3365.3,0.00284212]
[1641461298791,5.90110004,3365.9,3365.3,0.00284212]
[1641461299191,5.90110004,3365.9,3364.5,0.00738951]
[1641461299424,2.59877632,3365.8,3364.5,0.00738951]
[1641461299613,6.40110004,3365.9,3364.5,0.00738951]
[1641461299614,5.90110004,3365.9,3364.5,0.00738951]
[1641461299817,7.80939683,3365.9,3365.4,0.0013167]
[1641461300019,8.10939683,3365.9,3365.4,0.0013167]
[1641461300218,2.4663835,3365.8,3365.4,2.197e-05]
[1641461300430,17.34265277,3365.6,3365.4,2.197e-05]
[1641461300618,13.656,3365.5,3362.7,3.7808]
[1641461300818,13.656,3365.5,3362.5,1.2081]
[1641461300819,0.01226836,3364.8,3362.5,1.2081]
[1641461301018,0.01226836,3364.8,3362.8,0.01534744]
[1641461301019,0.01218627,3364.0,3362.8,0.01534744]
[1641461301219,5.90110004,3363.9,3362.8,1.21591333]
[1641461301420,6.20110004,3363.9,3362.9,1.68481896]
[1641461301619,6.20110004,3363.9,3362.9,1.69959797]
[1641461301818,6.20110004,3363.9,3363.0,0.01421059]
[1641461302120,0.01155867,3363.8,3363.0,0.01421059]
[1641461302319,5.90110004,3363.7,3363.0,1.30691114]
[1641461302522,6.20110004,3363.7,3363.5,2.25351599]
[1641461302918,6.20110004,3363.7,3363.6,1.21997773]
[1641461302919,9.55955595,3363.7,3363.6,1.21997773]
[1641461303176,9.25955595,3363.7,3363.6,1.21997773]
[1641461303776,5.90110004,3363.7,3363.6,0.01080005]
[1641461303982,5.9134302,3363.7,3363.6,0.01080005]
[1641461304179,5.90110004,3363.7,3363.6,0.01080005]
[1641461304379,5.90110004,3363.7,3362.7,0.01591586]
[1641461304580,6.20110004,3363.7,3362.7,0.01591586]
[1641461304784,9.56124219,3363.7,3362.8,1.42191932]
[1641461304983,9.56124219,3363.7,3363.3,1.85219846]
[1641461305383,3.36014215,3363.6,3363.4,0.0119369]
[1641461305587,15.07803586,3363.5,3363.4,0.0119369]
[1641461305787,15.07803586,3363.5,3362.7,0.01591586]
[1641461305788,13.69703586,3363.5,3362.7,0.01591586]
[1641461305983,13.99703586,3363.5,3361.3,0.6327151]
[1641461306184,0.01226683,3362.8,3361.3,0.6327151]
[1641461306383,6.40110004,3362.7,3361.3,0.6327151]
[1641461306583,6.40110004,3362.7,3361.4,0.0073895]
[1641461306584,0.74404,3362.1,3361.4,0.0073895]
[1641461306787,1.96626442,3362.0,3361.4,0.0073895]
[1641461307014,18.07404,3362.1,3361.4,0.0073895]
[1641461307015,1.18223997,3362.1,3361.4,0.0073895]
[1641461307214,5.90110004,3362.0,3361.4,0.0073895]
[1641461307614,0.74405,3361.9,3361.4,0.0073895]
[1641461308115,5.90110004,3361.8,3361.4,2.0606649]
[1641461308316,5.90110004,3361.8,3359.2,0.6999151]
[1641461308317,0.6327151,3361.3,3359.2,0.6999151]
[1641461308516,0.01269147,3360.2,3359.2,0.6999151]
[1641461308717,3.1223835,3361.2,3359.3,0.0119369]
[1641461308718,0.356,3361.1,3359.3,0.0119369]
[1641461308916,0.3,3360.4,3359.3,2.2663835]
[1641461309116,0.02264502,3361.0,3359.2,0.631852]
[1641461309316,0.02264502,3361.0,3359.3,3.47944244]
[1641461309317,5.90678428,3360.3,3359.3,3.47944244]
[1641461309616,5.90678428,3360.3,3359.2,0.631852]
[1641461309617,5.90110004,3360.3,3360.2,7.90425865]
[1641461309818,5.90110004,3360.3,3359.2,4.5864455]
[1641461310021,5.90678428,3360.3,3359.2,0.631852]
[1641461310219,5.90678428,3360.3,3359.2,0.332152]
[1641461310425,0.01245499,3360.1,3359.2,0.332152]
[1641461310869,5.90507901,3360.0,3359.2,0.332152]
[1641461311270,0.00341054,3359.9,3359.2,0.332152]
[1641461311474,0.01249887,3359.3,3359.2,0.332152]
[1641461311871,5.91359891,3359.3,3359.2,0.224152]
[1641461312072,5.86359891,3359.3,3359.2,0.224152]
[1641461312271,5.86359891,3359.3,3359.0,15.03966783]
[1641461312272,0.2241,3359.2,3359.0,1.03686783]
[1641461312472,0.356,3359.1,3359.0,0.93186783]
[1641461312671,0.656,3359.1,3359.0,0.93186783]
[1641461312872,6.51959891,3359.1,3359.0,0.93186783]
[1641461313076,6.51959891,3359.1,3357.1,0.6917151]
[1641461313077,13.75,3358.9,3357.1,0.6917151]
[1641461313272,3.2,3357.5,3356.6,8.392925]
[1641461313474,3.2,3357.5,3356.6,1.397525]
[1641461313475,0.01270689,3356.7,3356.6,1.397525]
[1641461313677,0.01270689,3356.7,3356.4,3.6519939]
[1641461313879,0.01270689,3356.7,3356.6,4.743e-05]
[1641461314077,13.75,3356.6,3355.6,0.00625]
[1641461314277,0.36870689,3356.7,3355.6,0.00625]
[1641461314278,6.56252962,3356.1,3355.6,0.00625]
[1641461314518,13.75,3355.9,3355.1,7.77826844]
[1641461314722,0.01236631,3355.2,3355.1,7.77826844]
[1641461314919,0.01236631,3355.2,3355.1,6.844e-05]
[1641461314920,17.34236631,3355.2,3355.1,6.844e-05]
[1641461315220,17.34236631,3355.2,3354.6,10.07217264]
[1641461315221,5.87596522,3355.2,3354.6,8.73277425]
[1641461315419,5.71359891,3355.2,3354.7,0.97430069]
[1641461315621,6.01359891,3355.2,3354.7,0.01080005]
[1641461315818,0.01249817,3355.1,3354.7,0.01080005]
[1641461316018,11.18259891,3355.2,3354.7,0.01080005]
[1641461316222,11.18259891,3355.2,3354.7,2.10395254]
[1641461316223,10.88259891,3355.2,3354.7,2.10395254]
[1641461316418,10.88259891,3355.2,3354.6,8.6835743]
[1641461316419,10.88259891,3355.2,3354.5,0.02691494]
[1641461316421,11.1590491,3355.2,3354.5,0.02691494]
[1641461316619,11.1590491,3355.2,3354.0,0.09170455]
[1641461316620,5.9900491,3355.2,3354.8,0.00170527]
[1641461316819,11.1590491,3355.2,3354.8,0.00170527]
[1641461317018,11.1590491,3355.2,3354.1,0.00568424]
[1641461317019,0.01257318,3354.9,3354.1,0.00568424]
[1641461317420,0.01257318,3354.9,3352.8,1.0]
[1641461317421,0.01246713,3354.2,3353.0,0.31248617]
[1641461317619,5.6900491,3354.8,3352.6,1.60603767]
[1641461317620,5.69402807,3354.8,3352.6,1.60603767]
[1641461317820,5.69402807,3354.8,3353.9,1.00914735]
[1641461318019,0.00341054,3354.7,3354.5,1.08398728]
[1641461318274,0.00341054,3354.7,3353.1,0.00568423]
[1641461318275,0.01271095,3354.6,3354.2,2.23885719]
[1641461318468,0.00284212,3354.6,3354.2,2.18885719]
[1641461318670,5.2600228,3354.5,3354.2,2.18885719]
[1641461318868,0.01159002,3354.6,3354.2,2.18885719]
[1641461318869,9.002e-05,3354.6,3354.2,2.18885719]
[1641461319072,1.32591893,3355.3,3354.4,13.75]
[1641461319273,3.09e-05,3355.8,3354.5,16.20062983]
[1641461319475,3.43051481,3356.3,3355.2,0.01291911]
[1641461319670,3.01673937,3357.4,3356.8,6.95]
[1641461319872,52.26669829,3358.6,3357.2,0.01248236]
[1641461320071,2.43843786,3358.5,3357.2,0.01248236]
[1641461320272,5.9562,3358.4,3356.0,0.74475]
[1641461320471,2.12534632,3357.6,3356.3,0.01228264]
[1641461320671,2.43843786,3357.5,3355.2,1.0]
[1641461320874,2.43843786,3357.5,3356.6,0.00236568]
[1641461320875,2.4515116,3357.5,3356.6,0.00236568]
[1641461321071,0.01250532,3357.4,3356.6,0.00236568]
[1641461321477,1.84855109,3357.0,3356.6,0.00236568]
[1641461321773,5.9658632,3356.9,3356.6,0.00236568]
[1641461322223,0.00909478,3356.8,3356.6,0.00236568]
[1641461322424,0.00909478,3356.8,3356.6,1.24509611]
[1641461322626,5.96472635,3356.7,3356.6,0.00236568]
[1641461323025,5.96472635,3356.7,3354.9,1.33492904]
[1641461323225,2.43843786,3356.6,3354.9,0.356]
[1641461323428,2.43843786,3356.6,3354.8,1.0]
[1641461323429,0.13819997,3356.5,3355.0,0.00113685]
[1641461323625,0.01211293,3356.1,3355.0,0.00113685]
[1641461323824,0.01211293,3356.1,3355.7,2.10965887]
[1641461324025,5.96074739,3356.0,3354.9,0.00170527]
[1641461324224,5.96074739,3356.0,3354.0,0.26770527]
[1641461324426,5.96074739,3356.0,3354.4,0.00284212]
[1641461324427,0.00568423,3355.9,3354.4,0.00284212]
[1641461324627,0.00568423,3355.9,3354.4,0.35884212]
[1641461324828,5.94025563,3355.8,3354.4,0.35884212]
[1641461325027,5.94025563,3355.8,3355.4,1.36224058]
[1641461325229,5.0,3356.9,3356.2,1.21180974]
[1641461325230,0.00341054,3356.4,3356.2,1.21180974]
[1641461325667,5.0,3356.9,3356.3,1.96070306]
[1641461325865,5.0,3356.9,3356.8,1.28562739]
[1641461326073,5.0,3356.9,3356.8,0.5901]
[1641461326874,5.0,3356.9,3355.5,0.00170527]
[1641461327070,2.56667492,3356.8,3355.5,0.00170527]
[1641461327273,2.56667492,3356.8,3354.6,1.0]
[1641461327274,3.07235916,3356.8,3355.4,0.00227369]
[1641461327472,0.87687163,3356.8,3355.3,0.00284212]
[1641461327671,0.30568424,3356.8,3354.7,0.00625266]
[1641461327871,7.60553263,3356.7,3355.7,1.77408591]
[1641461328072,5.9594,3356.7,3355.7,1.77408591]
[1641461328272,0.00454739,3356.6,3355.7,1.77408591]
[1641461328473,5.9594,3356.5,3356.2,1.41297497]
[1641461328675,5.96337897,3356.5,3356.2,1.41297497]
[1641461328873,0.00341054,3356.4,3356.2,1.41297497]
[1641461329074,0.00341054,3356.4,3356.3,1.96898465]
[1641461329276,5.0,3356.9,3356.4,13.75]
[1641461329536,5.0,3356.9,3356.3,1.96898465]
[1641461329736,0.00568424,3356.8,3356.3,1.96898465]
[1641461330136,0.00511581,3356.7,3356.6,1.11152356]
[1641461330539,0.00511581,3356.7,3356.3,1.96898465]
[1641461330938,0.00454739,3356.6,3356.3,1.96898465]
[1641461331355,0.00397897,3356.5,3356.3,1.96898465]
[1641461331541,0.00397897,3356.5,3356.4,0.00225015]
[1641461331740,5.0,3356.9,3356.5,1.3546675]
[1641461332039,5.0,3356.9,3356.4,0.00225015]
[1641461332040,0.00568424,3356.8,3356.4,0.00225015]
[1641461332241,2.59796184,3356.8,3356.4,0.00225015]
[1641461332440,2.59796184,3356.8,3356.4,5.015e-05]
[1641461332441,0.00511581,3356.7,3356.4,5.015e-05]
[1641461332642,1.54610665,3357.9,3357.1,0.1983011]
[1641461332843,1.43170665,3357.9,3357.1,0.1983011]
[1641461333042,5.9568,3357.8,3357.1,0.1983011]
[1641461333271,5.9568,3357.8,3356.5,3.684e-05]
[1641461333272,1.29350668,3357.6,3356.5,3.684e-05]
[1641461333577,1.29350668,3357.6,3354.4,2.5922776]
[1641461333578,13.75,3357.1,3354.4,2.5922776]
[1641461333775,23.2868,3357.0,3356.0,0.00284212]
[1641461333977,23.28964211,3357.0,3356.0,0.00284212]
[1641461334176,0.00227369,3356.9,3356.0,2.86647645]
[1641461334576,5.95850527,3356.8,3356.6,1.33344583]
[1641461334977,0.00113684,3356.7,3356.6,1.33344583]
[1641461335376,0.00113684,3356.7,3356.6,3.48659127]
[1641461335377,5.95793684,3356.7,3356.6,3.48659127]
[1641461335576,5.95793684,3356.7,3356.6,3.78659127]
[1641461335777,1.43170665,3357.9,3356.7,13.75]
[1641461335979,5.9572,3357.8,3357.7,1.3852429]
[1641461336678,5.9572,3357.8,3357.7,3.52869077]
[1641461336922,5.9572,3357.8,3357.7,3.82869077]
[1641461337122,0.7855,3357.8,3357.7,3.82869077]
[1641461337325,0.7855,3357.8,3357.7,8.67869077]
[1641461337526,0.7855,3357.8,3357.7,3.82869077]
[1641461337726,1.29350668,3358.3,3357.7,3.52869077]
[1641461337925,5.9559,3358.2,3357.8,0.356]
[1641461338125,5.96442635,3358.2,3357.8,0.356]
[1641461339128,5.96442635,3358.2,3357.9,0.74437]
[1641461339327,0.93186783,3359.0,3357.9,0.74437]
[1641461339527,0.93186783,3359.0,3358.0,0.356]
[1641461339727,0.93186783,3359.0,3358.1,17.33]
[1641461339728,0.00341055,3358.8,3358.1,17.33]
[1641461339930,0.00341055,3358.8,3358.3,2.66517843]
[1641461340128,0.00284212,3358.7,3358.4,0.356]
[1641461340428,0.0022737,3358.6,3358.4,0.356]
[1641461340870,0.00170527,3358.5,3358.4,0.356]
[1641461341073,0.00170527,3358.5,3358.4,1.356]
[1641461341271,0.00170527,3358.5,3358.4,0.356]
[1641461341576,0.00170527,3358.5,3358.0,0.00113684]
[1641461341971,1.43186783,3359.0,3357.9,0.00170527]
[1641461341972,0.00113685,3358.4,3357.9,0.00170527]
[1641461342371,0.00397897,3358.9,3358.1,1.13232962]
[1641461342771,4.66292846,3358.9,3358.1,1.13232962]
[1641461342971,4.66292846,3358.9,3358.1,0.00174137]
[1641461343171,4.96292846,3358.9,3358.1,0.00174137]
[1641461343573,14.46818916,3358.2,3358.1,4.137e-05]
[1641461343773,14.46818916,3358.2,3356.2,1.0]
[1641461343774,7.0,3358.1,3356.2,1.0]
[1641461343972,17.33,3358.0,3355.9,6.73227299]
[1641461344276,17.33,3358.0,3356.3,0.00909477]
[1641461344277,17.33,3357.8,3356.3,0.00909477]
[1641461344517,1.045,3357.6,3356.3,0.00909477]
[1641461344716,2.79432401,3357.5,3356.3,0.00909477]
[1641461344917,2.82492022,3357.5,3356.3,0.00909477]
[1641461345316,0.3,3357.5,3356.3,0.00909477]
[1641461345717,0.3,3357.7,3357.1,1.84436655]
[1641461346017,3.24351751,3358.0,3357.6,1.37607725]
[1641461346018,0.01158017,3358.0,3357.6,1.37607725]
[1641461346218,1.29350668,3357.7,3357.6,1.37607725]
[1641461346416,1.29350668,3357.7,3357.1,1.84436655]
[1641461346820,1.29350668,3357.7,3357.2,0.00397896]
[1641461347017,0.01158017,3358.0,3357.2,0.00397896]
[1641461347217,0.01158017,3358.0,3357.3,0.356]
[1641461347616,0.01158017,3358.0,3357.6,1.0]
[1641461347817,0.01158017,3358.0,3357.7,0.356]
[1641461348018,0.01158017,3358.0,3357.9,14.75493254]
[1641461348265,8.017e-05,3358.0,3357.9,1.36093254]
[1641461348467,5.95608017,3358.0,3357.9,1.36093254]
[1641461348672,2.22537451,3359.0,3357.9,1.36093254]
[1641461348875,5.956,3358.0,3357.9,1.36206938]
[1641461349073,5.956,3358.0,3357.9,1.66206938]
[1641461349272,0.00454739,3358.9,3358.0,5.2]
[1641461349476,0.00454739,3358.9,3358.3,2.23284]
[1641461349673,0.93186783,3359.0,3358.3,2.23284]
[1641461349674,0.00397897,3358.8,3358.3,2.23284]
[1641461350075,0.00341054,3358.7,3358.4,2.04492153]
[1641461350277,0.00341054,3358.7,3358.4,3.90306952]
[1641461350475,0.00284212,3358.6,3358.4,3.90306952]
[1641461350675,0.00284212,3358.6,3358.5,25.58]
[1641461350876,6.783e-05,3359.0,3358.5,25.58]
[1641461351075,5.955,3358.6,3358.5,17.686]
[1641461351275,1.29350668,3359.7,3358.6,5.6]
[1641461351478,5.169,3360.1,3359.3,0.74407]
[1641461351479,5.9539,3359.6,3359.3,0.74407]
[1641461351678,5.95962635,3359.6,3359.4,2.24850327]
[1641461352127,5.95962635,3359.6,3359.5,1.07727765]
[1641461352726,5.95962635,3359.6,3359.4,2.24850327]
[1641461353125,0.00515793,3359.5,3359.4,2.24850327]
[1641461353527,5.95905793,3359.5,3359.4,2.24850327]
[1641461353826,5.95905793,3359.5,3359.4,3.30548687]
[1641461354026,5.95905793,3359.5,3359.4,20.63548687]
[1641461354227,5.95905793,3359.5,3359.4,20.93548687]
[1641461354531,5.169,3360.1,3359.5,4.54744207]
[1641461354733,5.169,3360.1,3359.9,1.11933435]
[1641461354929,1.29350668,3360.6,3360.2,0.74378]
[1641461355129,1.29350668,3360.6,3360.3,0.356]
[1641461355328,6.89367558,3360.8,3360.3,0.356]
[1641461355529,1.50317558,3360.8,3360.7,1.0]
[1641461355772,4.3576,3360.8,3360.7,1.0]
[1641461356174,4.3576,3360.8,3360.6,0.74374]
[1641461356573,4.3576,3360.8,3360.7,0.3]
[1641461356773,4.3576,3360.8,3360.6,0.74374]
[1641461356987,4.3649895,3360.8,3360.7,0.3]
[1641461357177,3.3771895,3360.8,3360.6,0.74374]
[1641461357376,3.3771895,3360.8,3360.7,0.3]
[1641461357576,3.3698,3360.8,3360.7,0.3]
[1641461357876,3.3698,3360.8,3359.2,5.4631588]
[1641461358073,3.3698,3360.8,3359.4,0.74405]
[1641461358273,0.00682108,3360.7,3359.3,0.00113684]
[1641461358477,3.3698,3360.6,3359.3,0.00113684]
[1641461358776,3.67605266,3360.6,3359.8,1.72739814]
[1641461358974,3.67605266,3360.6,3359.3,0.00113684]
[1641461358975,0.36168423,3360.5,3359.3,0.00113684]
[1641461359175,0.74437,3360.3,3359.3,0.00113684]
[1641461359433,0.356,3360.3,3359.1,0.00227369]
[1641461359624,0.00397896,3360.2,3359.1,0.00227369]
[1641461359824,0.00397896,3360.2,3358.5,1.48852]
[1641461359825,0.00397896,3360.2,3359.2,1.0129269]
[1641461360028,3.37321054,3360.1,3359.2,1.0129269]
[1641461360324,3.37321054,3360.1,3359.3,0.00113685]
[1641461360325,0.00284212,3360.0,3359.3,0.00113685]
[1641461360528,3.3698,3359.9,3359.3,0.00113685]
[1641461360725,8.54107369,3359.9,3359.3,0.00113685]
[1641461360925,0.00170527,3359.8,3359.4,1.87924337]
[1641461361128,3.3698,3359.7,3359.4,1.87924337]
[1641461361327,3.37093685,3359.7,3359.4,1.87924337]
[1641461361925,5.169,3359.9,3359.4,1.87924337]
[1641461362325,5.169,3359.9,3359.5,0.00113685]
[1641461362727,5.169,3359.9,3359.8,1.35335871]
[1641461363176,11.12273684,3359.9,3359.8,1.35335871]
[1641461363476,3.57208428,3361.2,3359.9,8.35]
[1641461363677,0.6327151,3361.3,3361.1,1.25342315]
[1641461363874,0.00625266,3361.0,3360.0,1.96427552]
[1641461364075,0.00625266,3361.0,3360.4,2.2314494]
[1641461364274,0.6327151,3361.3,3360.4,2.2314494]
[1641461364275,0.00568424,3360.9,3360.5,3.37347002]
[1641461364678,0.00511581,3360.8,3360.5,3.37347002]
[1641461365079,5.95574739,3360.7,3360.6,1.48767]
[1641461365282,5.95574739,3360.7,3360.5,3.37347002]
[1641461365781,0.6327151,3361.3,3361.2,1.19018874]
[1641461366180,0.6327151,3361.3,3361.0,1.02788607]
[1641461366384,0.6340651,3361.3,3361.0,1.32788607]
[1641461366580,0.00284212,3361.2,3361.1,1.60105428]
[1641461366780,0.00284212,3361.2,3361.1,2.34483428]
[1641461367017,0.6917151,3362.3,3362.2,1.28210567]
[1641461367217,0.6917151,3362.3,3360.7,1.48751]
[1641461367418,0.00568423,3362.2,3360.8,0.7437513]
[1641461367620,3.05821883,3364.0,3362.3,13.75]
[1641461367821,3.05821883,3364.0,3362.2,13.75]
[1641461367822,3.05821883,3364.0,3363.6,0.15503377]
[1641461368217,0.02789606,3364.1,3363.6,1.27866304]
[1641461368218,3.05821883,3363.9,3363.6,1.27866304]
[1641461368418,8.22721883,3363.9,3363.6,1.02904151]
[1641461368617,3.05821883,3363.9,3363.6,1.02904151]
[1641461369421,0.01023163,3364.0,3363.6,2.51539151]
[1641461369823,0.0096632,3363.9,3363.6,2.51539151]
[1641461370025,0.0096632,3363.9,3363.7,0.74317]
[1641461370326,0.00909478,3363.8,3363.7,0.74317]
[1641461370778,0.0119369,3363.8,3363.7,0.74317]